bitfinex-derivatives/quotes_ETHF0:USTF0_20210705
["timestamp","ask_amount","ask_price","bid_price","bid_amount"]
[1625455126085,7.02584,2266.3,2266.2,2.20527]
[1625455126486,52.7542,2265.9,2265.8,2.20527]
[1625455127489,7.02584,2266.3,2265.8,2.20527]
[1625455127789,7.02584,2266.3,2264.7,14.6933]
[1625455127888,7.02584,2266.3,2264.9,1.0]
[1625455128090,7.02584,2266.3,2264.7,14.6933]
[1625455128289,2.20527,2265.5,2265.4,2.20527]
[1625455128391,4.66097,2265.5,2265.4,2.20527]
[1625455130194,5.53327,2265.5,2265.4,2.20527]
[1625455130296,6.86624,2265.5,2265.4,2.20527]
[1625455130945,6.86624,2265.5,2265.2,2.20527]
[1625455131045,6.86624,2265.5,2264.7,1.0]
[1625455131150,6.86624,2265.5,2263.4,14.4632]
[1625455131247,6.86624,2265.5,2263.5,1.0]
[1625455131846,6.86624,2265.5,2263.6,15.968114]
[1625455131946,6.86624,2265.5,2263.7,1.0]
[1625455132245,6.86624,2265.5,2263.8,16.032813]
[1625455132345,2.20527,2264.7,2264.6,2.20527]
[1625455132446,2.20527,2264.7,2264.6,3.20527]
[1625455133047,2.20527,2264.7,2264.6,19.23621]
[1625455134353,4.41054,2264.7,2264.6,19.23621]
[1625455143954,7.4042,2265.8,2264.6,19.23621]
[1625455144353,2.20527,2265.0,2264.6,19.23621]
[1625455145057,7e-05,2265.0,2264.6,19.23621]
[1625455145154,2.20527,2265.2,2264.6,19.23621]
[1625455145254,2.20527,2265.2,2264.6,22.50331]
[1625455146107,14.0666,2266.6,2264.6,22.50331]
[1625455146407,2.20527,2265.7,2265.5,2.20527]
[1625455146710,14.0666,2266.6,2265.5,2.20527]
[1625455147511,14.0666,2266.6,2265.3,2.20527]
[1625455148312,19.0666,2266.6,2265.3,2.20527]
[1625455148412,4.41054,2265.4,2265.3,2.20527]
[1625455149665,4.41054,2265.4,2265.3,3.20527]
[1625455149767,4.41054,2265.4,2265.3,2.20527]
[1625455150566,4.41054,2265.4,2265.3,3.20527]
[1625455151119,4.41054,2265.4,2265.3,2.20527]
[1625455151830,3.5822,2266.1,2265.3,2.20527]
[1625455152487,2.20527,2265.4,2265.3,2.20527]
[1625455153740,2.20527,2265.4,2265.3,3.20527]
[1625455153940,2.20527,2265.4,2265.3,2.20527]
[1625455155792,2.20527,2265.4,2265.3,3.20527]
[1625455156599,4.50337,2265.4,2265.3,1.0]
[1625455156698,4.50337,2265.4,2264.9,2.20527]
[1625455157150,43.2994,2265.0,2264.9,2.20527]
[1625455157253,43.2994,2265.0,2264.4,1.0]
[1625455158056,43.2994,2265.0,2262.3,14.9662]
[1625455158163,48.2994,2265.0,2262.4,14.0264]
[1625455158655,2.20527,2263.7,2263.6,2.20527]
[1625455158757,5.14767,2263.7,2263.6,2.20527]
[1625455160508,7.35294,2263.7,2263.6,2.20527]
[1625455164470,51.56694,2263.7,2263.6,2.20527]
[1625455165419,51.56694,2263.7,2262.5,1.0]
[1625455166422,51.56694,2263.7,2262.6,16.01191]
[1625455166522,2.20527,2263.1,2263.0,2.20527]
[1625455166621,2.20527,2263.1,2263.0,3.20527]
[1625455167978,2.20527,2263.1,2263.0,19.269886]
[1625455171247,2.20527,2263.5,2263.0,19.269886]
[1625455171347,2.20527,2263.5,2263.0,22.332286]
[1625455171600,0.8839,2264.6,2263.0,22.332286]
[1625455171698,4.759,2265.0,2263.0,22.332286]
[1625455172549,2.20527,2264.2,2264.1,2.20527]
[1625455172650,2.20527,2264.2,2264.0,1.0]
[1625455172852,2.20527,2264.2,2263.9,2.20527]
[1625455173304,2.20527,2264.2,2264.0,1.0]
[1625455173404,2.20527,2264.2,2262.9,2.8599]
[1625455174057,2.20527,2264.2,2263.0,17.062653]
[1625455174555,2.20527,2263.7,2263.6,2.20527]
[1625455174655,1.20527,2263.7,2263.6,2.20527]
[1625455174759,40.9855,2264.4,2263.6,2.20527]
[1625455174954,40.9855,2264.4,2263.7,16.098789]
[1625455175206,4.759,2265.0,2263.6,18.273815]
[1625455175305,2.6138,2264.6,2263.6,2.20527]
[1625455175456,2.6138,2264.6,2263.7,16.140603]
[1625455175657,1.0,2264.5,2263.7,16.140603]
[1625455175862,1.0,2264.5,2263.6,2.20527]
[1625455176261,1.0,2264.5,2263.7,16.115773]
[1625455176559,2.20527,2264.2,2264.1,2.20527]
[1625455176661,3.20527,2264.2,2264.1,2.20527]
[1625455178613,5.41054,2264.2,2264.1,2.20527]
[1625455183545,5.41054,2264.2,2264.1,4.92837]
[1625455186000,5.41054,2264.2,2264.1,20.951974]
[1625455186103,4.41054,2264.2,2264.1,20.951974]
[1625455186305,1.0,2264.9,2264.1,20.951974]
[1625455186713,1.0,2264.9,2264.8,5.59337]
[1625455186907,6.96427,2265.0,2264.8,5.59337]
[1625455187209,2.20527,2265.0,2264.8,5.59337]
[1625455187512,1.0,2265.2,2264.8,5.59337]
[1625455188658,3.20527,2265.2,2265.1,2.20527]
[1625455191663,3.20527,2265.2,2265.1,5.96117]
[1625455192116,3.20527,2265.2,2265.1,21.876696]
[1625455192268,1.0,2265.2,2265.1,21.876696]
[1625455192366,1.0,2265.3,2265.1,21.876696]
[1625455192666,1.0,2265.3,2265.2,2.20527]
[1625455192767,2.20527,2265.4,2265.2,2.20527]
[1625455192867,3.20527,2265.4,2265.2,2.20527]
[1625455195022,3.20527,2265.4,2265.3,16.082246]
[1625455195824,1.0,2265.4,2265.3,16.082246]
[1625455196674,3.20527,2265.4,2265.3,16.082246]
[1625455197126,3.20527,2265.4,2265.2,2.20527]
[1625455198933,2.20527,2265.9,2265.2,2.20527]
[1625455199032,2.20527,2265.9,2265.2,5.29027]
[1625455199134,14.3388,2266.1,2265.2,5.29027]
[1625455199432,14.3388,2266.1,2265.3,16.032946]
[1625455200233,15.3388,2266.1,2265.3,16.032946]
[1625455200739,15.3388,2266.1,2266.0,4.41054]
[1625455200839,15.3388,2266.1,2265.7,2.4302]
[1625455201041,1.0,2266.1,2265.7,2.4302]
[1625455201544,1.0,2266.1,2265.8,16.086614]
[1625455201645,2.20527,2266.2,2265.8,16.086614]
[1625455201995,3.20527,2266.2,2265.8,16.086614]
[1625455202747,3.20527,2266.2,2266.0,2.20527]
[1625455203247,2.20527,2266.2,2266.0,2.20527]
[1625455203798,1.0,2266.1,2266.0,2.20527]
[1625455204749,3.20527,2266.1,2266.0,2.20527]
[1625455205652,2.59594937,2266.8,2266.0,2.20527]
[1625455205955,4.759,2267.1,2266.0,2.20527]
[1625455206051,4.759,2267.1,2266.1,16.120834]
[1625455206153,14.9784,2267.2,2266.1,16.120834]
[1625455206854,2.20527,2266.7,2266.6,2.20527]
[1625455206954,45.36377,2266.7,2266.6,2.20527]
[1625455207052,2.20527,2266.7,2266.6,2.20527]
[1625455207753,3.20527,2266.7,2266.6,2.20527]
[1625455208808,5.41054,2266.7,2266.6,2.20527]
[1625455210963,5.41054,2266.7,2266.0,2.20527]
[1625455211262,5.41054,2266.7,2264.5,13.8428]
[1625455211364,5.0,2266.6,2264.5,13.8428]
[1625455211464,1.0,2266.5,2264.5,13.8428]
[1625455211867,1.0,2266.5,2264.6,16.014291]
[1625455212215,5.759,2266.5,2264.5,13.8428]
[1625455212315,49.4697,2265.6,2264.5,13.8428]
[1625455212415,1.0,2265.5,2264.5,13.8428]
[1625455212819,2.20527,2265.3,2265.1,2.20527]
[1625455213120,1.0,2265.2,2265.1,2.20527]
[1625455213238,2.20527,2265.3,2265.1,2.20527]
[1625455213420,2.20527,2265.3,2265.2,16.052755]
[1625455213520,3.20527,2265.3,2265.2,16.052755]
[1625455213723,3.20527,2265.3,2265.1,18.347785]
[1625455213820,3.20527,2265.3,2265.1,2.20527]
[1625455214428,3.20527,2265.3,2265.2,16.003616]
[1625455214823,5.41054,2265.3,2265.2,16.003616]
[1625455215276,4.41054,2265.3,2265.2,16.003616]
[1625455215926,5.41054,2265.3,2265.2,16.003616]
[1625455216331,4.41054,2265.3,2265.2,16.003616]
[1625455216683,5.41054,2265.3,2265.2,16.003616]
[1625455217280,5.41054,2265.3,2265.1,2.20527]
[1625455217831,5.41054,2265.3,2264.5,13.8428]
[1625455217931,5.41054,2265.3,2264.4,14.701]
[1625455218131,4.41054,2265.3,2263.3,3.30753518]
[1625455218334,1.0,2265.2,2263.4,3.30776265]
[1625455218440,1.0,2265.2,2263.8,15.897492]
[1625455218535,1.0,2265.2,2263.8,16.02823461]
[1625455218933,2.20527,2265.3,2265.1,2.20527]
[1625455219234,1.0,2265.8,2265.2,15.909321]
[1625455220885,2.20527,2265.5,2265.4,2.20527]
[1625455225040,3.20527,2265.5,2263.9,17.3321158]
[1625455225141,3.20527,2265.5,2263.9,14.781]
[1625455225493,55.2301,2265.4,2263.9,14.781]
[1625455225593,1.0,2265.3,2263.9,14.781]
[1625455225999,1.0,2265.3,2264.0,15.945362]
[1625455226910,2.20527,2264.8,2264.7,2.20527]
[1625455228259,3.20527,2264.8,2264.7,2.20527]
[1625455228724,3.20527,2264.8,2263.9,14.781]
[1625455228816,3.20527,2264.8,2263.8,14.1237]
[1625455228915,2.20527,2264.1,2264.0,2.20527]
[1625455229766,3.20527,2264.1,2264.0,2.20527]
[1625455236532,4.07907,2264.1,2264.0,2.20527]
[1625455236733,3.20527,2264.1,2264.0,2.20527]
[1625455237284,2.20527,2264.3,2264.0,2.20527]
[1625455237784,2.20527,2264.3,2264.1,15.92146]
[1625455238083,2.20527,2264.3,2264.0,2.20527]
[1625455238586,1.0,2264.2,2264.0,2.20527]
[1625455238686,2.20527,2264.3,2264.0,2.20527]
[1625455238886,55.83787,2264.3,2264.0,2.20527]
[1625455239387,1.0,2264.2,2264.0,2.20527]
[1625455240788,2.20527,2264.3,2264.0,2.20527]
[1625455240989,2.20527,2264.3,2264.1,2.20527]
[1625455241090,3.20527,2264.3,2264.1,2.20527]
[1625455241992,2.20527,2264.3,2264.1,2.20527]
[1625455247165,46.3448,2264.8,2264.1,2.20527]
[1625455247267,0.8819,2265.2,2264.1,2.20527]
[1625455247363,4.759,2265.7,2264.1,2.20527]
[1625455247863,4.759,2265.7,2264.2,15.955555]
[1625455248265,0.8856,2265.9,2264.2,15.955555]
[1625455248814,1.0,2265.7,2264.2,15.955555]
[1625455249116,2.20527,2265.4,2265.2,4.41054]
[1625455249734,7e-05,2265.4,2265.2,4.41054]
[1625455249823,4.759,2266.2,2265.2,4.41054]
[1625455249920,5.759,2266.2,2265.2,4.41054]
[1625455250122,5.759,2266.2,2265.5,47.874]
[1625455250220,1.0,2266.2,2265.5,47.874]
[1625455250421,1.0,2266.2,2265.6,16.151682]
[1625455251124,1.0,2266.2,2266.1,2.20527]
[1625455252124,49.7181,2266.2,2266.1,2.20527]
[1625455252327,52.4807,2266.2,2264.4,13.7368]
[1625455253028,52.4807,2266.2,2264.5,16.093357]
[1625455253127,2.20527,2265.5,2265.4,2.20527]
[1625455253228,3.20527,2265.5,2265.4,2.20527]
[1625455254181,3.20527,2265.5,2265.4,18.32695]
[1625455262072,2.20527,2265.5,2265.4,18.32695]
[1625455265079,5.6284,2266.6,2265.4,18.32695]
[1625455265178,3.20527,2266.1,2265.8,2.20527]
[1625455265278,2.20527,2266.1,2265.8,2.20527]
[1625455266283,1.0,2266.0,2265.8,2.20527]
[1625455267183,1.0,2266.0,2265.9,2.20527]
[1625455268739,1.0,2266.0,2265.9,0.66467]
[1625455268938,1.0,2266.0,2265.8,1.25664]
[1625455269037,3.6461,2266.0,2265.8,0.37794]
[1625455269138,3.6461,2266.0,2264.4,13.7368]
[1625455269255,2.20527,2265.4,2265.3,2.20527]
[1625455269337,3.20527,2265.4,2265.3,2.20527]
[1625455271192,5.41054,2265.4,2265.3,2.20527]
[1625455275416,8.26324,2265.4,2265.3,2.20527]
[1625455276066,8.26324,2265.4,2264.4,13.7368]
[1625455277019,45.1965,2265.2,2264.4,13.7368]
[1625455277117,1.0,2265.1,2264.4,13.7368]
[1625455277219,1.0,2265.1,2264.1,1.78299554]
[1625455277318,2.20527,2264.7,2264.6,2.20527]
[1625455277417,5.73157,2264.7,2264.6,2.20527]
[1625455277919,5.73157,2264.7,2264.3,2.20527]
[1625455279324,2.20527,2264.4,2264.3,2.20527]
[1625455279572,3.20527,2264.4,2264.3,2.20527]
[1625455280320,1.0,2264.4,2264.3,2.20527]
[1625455281374,3.20527,2264.4,2264.3,2.20527]
[1625455285383,2.20527,2264.4,2264.3,2.20527]
[1625455286137,2.20527,2264.4,2264.3,18.186621]
[1625455287090,2.20527,2264.4,2264.3,2.20527]
[1625455287438,3.20527,2264.4,2264.3,2.20527]
[1625455287538,2.20527,2264.4,2264.3,2.20527]
[1625455291896,3.20527,2264.4,2264.3,2.20527]
[1625455294350,47.16927,2264.4,2264.3,2.20527]
[1625455294854,46.16927,2264.4,2264.3,2.20527]
[1625455295163,2.20527,2264.4,2264.3,2.20527]
[1625455298318,2.20527,2264.4,2264.3,18.20931]
[1625455298621,2.20527,2264.4,2264.3,2.20527]
[1625455298921,3.20527,2264.4,2264.3,2.20527]
[1625455299020,2.20527,2264.4,2264.3,2.20527]
[1625455302483,3.20527,2264.4,2264.3,2.20527]
[1625455304938,2.20527,2264.4,2264.3,2.20527]
[1625455316019,3.20527,2264.4,2264.3,2.20527]
[1625455317224,6.12557,2264.4,2264.3,2.20527]
[1625455317325,6.12557,2264.4,2263.9,1.78602393]
[1625455317477,6.12557,2264.4,2263.8,1.78715524]
[1625455317576,6.12557,2264.4,2264.0,2.20527]
[1625455317678,6.12557,2264.4,2264.0,2.33603528]
[1625455317977,6.12557,2264.4,2264.0,2.20527]
[1625455318878,6.12557,2264.4,2263.8,2.20527]
[1625455318977,6.12557,2264.4,2263.7,1.78763934]
[1625455319079,6.12557,2264.4,2263.6,1.7882068]
[1625455319478,6.12557,2264.4,2263.4,1.78935893]
[1625455319578,4.41054,2263.5,2263.4,1.78935893]
[1625455319680,7.68154,2263.5,2263.4,1.78935893]
[1625455319928,7.68154,2263.5,2263.4,1.92015024]
[1625455321433,7.68154,2263.5,2263.4,0.13079131]
[1625455325742,8.68154,2263.5,2263.4,0.13079131]
[1625455327146,8.68154,2263.5,2263.3,2.20527]
[1625455327596,63.74534,2263.5,2263.3,2.20527]
[1625455333867,63.74534,2263.5,2263.0,2.20527]
[1625455334267,63.74534,2263.5,2262.9,1.27103475]
[1625455334471,63.74534,2263.5,2262.7,1.27203257]
[1625455334974,63.74534,2263.5,2262.6,1.27212624]
[1625455335274,63.74534,2263.5,2262.5,1.27167025]
[1625455335675,2.20527,2262.8,2262.7,2.20527]
[1625455335775,3.20527,2262.8,2262.7,2.20527]
[1625455335876,3.20527,2262.8,2262.6,0.13083698]
[1625455336081,3.20527,2262.8,2262.5,1.27167025]
[1625455336278,2.20527,2262.8,2262.5,1.27167025]
[1625455336479,3.20527,2262.8,2262.6,0.13083426]
[1625455336578,3.20527,2262.8,2262.6,16.17986026]
[1625455337181,3.20527,2262.8,2262.6,16.049026]
[1625455337729,2.20527,2262.7,2262.6,18.254296]
[1625455337930,2.20527,2262.7,2262.6,2.20527]
[1625455338080,3.20527,2262.7,2262.6,2.20527]
[1625455338280,3.20527,2262.7,2262.6,18.18734]
[1625455338484,3.20527,2262.7,2262.6,15.98207]
[1625455338582,3.20527,2262.7,2262.3,1.27202951]
[1625455338882,39.0782,2262.6,2262.2,1.27244146]
[1625455338982,1.0,2262.5,2262.2,1.27244146]
[1625455339185,2.20527,2262.7,2262.2,1.27244146]
[1625455339281,3.20527,2262.7,2262.2,1.27244146]
[1625455339382,3.20527,2262.7,2262.3,1.27224593]
[1625455339482,3.20527,2262.7,2262.3,1.40308171]
[1625455339583,3.20527,2262.7,2262.3,17.55895071]
[1625455339681,2.20527,2262.4,2262.3,19.76422071]
[1625455339781,2.20527,2262.4,2262.3,19.63338493]
[1625455339882,2.20527,2262.4,2262.3,3.47751593]
[1625455340183,2.20527,2262.4,2262.3,19.53417675]
[1625455341336,2.20527,2262.4,2262.3,18.26193082]
[1625455342085,2.20527,2262.4,2262.3,19.53043106]
[1625455342185,2.20527,2262.7,2262.3,19.53043106]
[1625455342538,2.20527,2262.7,2262.4,1.26796193]
[1625455342638,2.20527,2262.7,2262.4,1.39879189]
[1625455342991,2.20527,2262.7,2262.5,16.2479019]
[1625455343339,2.20527,2262.7,2262.5,16.117072]
[1625455343789,2.20527,2262.7,2262.6,2.20527]
[1625455344091,2.20527,2262.7,2262.6,18.27103]
[1625455353688,3.20527,2262.7,2262.6,18.27103]
[1625455353788,3.20527,2262.7,2262.6,2.20527]
[1625455354139,44.81197,2262.7,2262.6,2.20527]
[1625455354391,44.81197,2262.7,2262.3,2.20527]
[1625455354590,3.20527,2262.7,2262.3,2.20527]
[1625455355042,3.20527,2262.7,2262.4,15.911649]
[1625455355843,5.41054,2262.7,2262.6,2.20527]
[1625455357249,49.59574,2262.7,2262.6,2.20527]
[1625455357550,49.59574,2262.7,2262.3,2.20527]
[1625455357903,2.20527,2262.4,2262.3,2.20527]
[1625455358003,3.20527,2262.4,2262.3,2.20527]
[1625455360275,2.20527,2262.4,2262.3,2.20527]
[1625455360859,2.20527,2262.4,2262.3,18.197743]
[1625455365668,3.20527,2262.4,2262.3,18.197743]
[1625455370638,2.20527,2262.4,2262.3,18.197743]
[1625455371140,3.20527,2262.7,2262.3,18.197743]
[1625455371992,3.20527,2262.7,2262.6,2.20527]
[1625455372293,3.20527,2262.7,2262.6,18.171319]
[1625455376804,2.20527,2262.7,2262.6,18.171319]
[1625455381069,3.20527,2262.7,2262.6,18.171319]
[1625455382320,2.20527,2262.7,2262.6,18.171319]
[1625455382520,3.20527,2262.7,2262.6,18.171319]
[1625455383922,2.20527,2262.7,2262.6,18.171319]
[1625455384022,2.20527,2262.9,2262.6,18.171319]
[1625455385987,1.0,2262.8,2262.6,18.171319]
[1625455386093,2.20527,2262.9,2262.7,2.20527]
[1625455386395,2.20527,2262.9,2262.8,16.015526]
[1625455386497,3.20527,2262.9,2262.8,16.015526]
[1625455391001,2.20527,2262.9,2262.8,16.015526]
[1625455393110,1.0,2263.4,2262.8,16.14635297]
[1625455393306,1.0,2264.2,2262.8,19.57165297]
[1625455393609,1.30035572,2264.5,2262.9,0.13081009]
[1625455393868,1.30035572,2264.5,2263.0,0.15239659]
[1625455393972,14.5138,2265.2,2263.6,43.1999]
[1625455393973,1.30043902,2264.8,2263.6,43.1999]
[1625455394074,2.20527,2264.7,2264.6,2.20527]
[1625455394272,1.30043902,2264.8,2264.6,2.20527]
[1625455394373,1.0,2264.7,2264.6,2.20527]
[1625455396128,3.20527,2264.7,2264.6,2.20527]
[1625455400909,1.0,2264.7,2264.6,2.20527]
[1625455401009,1.0,2264.8,2264.6,2.20527]
[1625455412906,1.0,2264.8,2264.7,59.710139]
[1625455413111,1.0,2264.8,2264.7,15.934039]
[1625455415963,2.20527,2264.9,2264.7,15.934039]
[1625455416264,2.20527,2264.9,2264.8,2.20527]
[1625455416971,3.20527,2264.9,2264.8,2.20527]
[1625455418374,2.20527,2264.9,2264.8,2.20527]
[1625455421230,3.20527,2264.9,2264.8,2.20527]
[1625455422680,2.20527,2264.9,2264.8,2.20527]
[1625455423985,25.04837,2264.9,2264.8,2.20527]
[1625455429629,28.54547,2264.9,2264.8,2.20527]
[1625455429751,28.54547,2264.9,2263.7,1.25716394]
[1625455429830,29.54547,2264.9,2263.7,1.25716394]
[1625455430165,48.8015,2263.9,2263.7,1.25716394]
[1625455430266,51.4351,2263.9,2263.5,1.25783533]
[1625455430516,51.4351,2263.9,2263.8,4.41054]
[1625455430918,52.4351,2263.9,2263.8,4.41054]
[1625455432473,54.64037,2263.9,2263.8,4.41054]
[1625455432577,5.83887,2263.9,2263.8,4.41054]
[1625455433826,5.83887,2263.9,2262.7,1.26018571]
[1625455434176,5.83887,2263.9,2262.8,0.13080829]
[1625455434477,2.20527,2263.6,2263.5,2.20527]
[1625455434576,52.63037,2263.6,2263.5,2.20527]
[1625455434676,3.20527,2263.6,2263.5,2.20527]
[1625455437387,2.20527,2263.6,2263.5,2.20527]
[1625455442066,5.75747,2263.6,2263.5,2.20527]
[1625455442167,6.75747,2263.6,2263.5,2.20527]
[1625455444518,62.04137,2263.6,2263.5,2.20527]
[1625455444621,62.04137,2263.6,2263.3,2.20527]
[1625455446572,2.20527,2263.4,2263.3,2.20527]
[1625455446675,3.20527,2263.4,2263.3,2.20527]
[1625455449734,3.20527,2263.4,2263.1,2.20527]
[1625455450533,2.20527,2263.2,2263.1,2.20527]
[1625455450632,3.20527,2263.2,2263.1,2.20527]
[1625455456164,50.13457,2263.2,2263.1,2.20527]
[1625455456815,3.20527,2263.2,2263.1,2.20527]
[1625455457372,2.20527,2263.2,2263.1,2.20527]
[1625455457675,11.93224,2264.3,2263.1,2.20527]
[1625455457774,11.93224,2264.3,2263.1,5.40537]
[1625455457944,1.29941979,2264.6,2263.2,0.13081442]
[1625455458361,1.29941979,2264.6,2263.3,16.091836]
[1625455458441,1.29963661,2264.7,2264.2,40.7748]
[1625455458727,22.8431,2264.9,2264.6,4.41054]
[1625455459036,22.8431,2264.9,2264.7,16.01685]
[1625455459630,23.8431,2264.9,2264.7,16.01685]
[1625455459729,23.8431,2264.9,2264.6,4.41054]
[1625455459832,22.8431,2264.9,2264.6,4.41054]
[1625455460438,47.1588,2264.8,2264.6,4.41054]
[1625455460634,1.0,2264.7,2264.6,4.41054]
[1625455460735,3.20527,2264.7,2264.6,4.41054]
[1625455460834,3.20527,2264.7,2263.4,14.5312]
[1625455461135,3.20527,2264.7,2263.4,15.78169292]
[1625455461334,3.20527,2264.7,2263.5,0.13078946]
[1625455461434,3.20527,2264.7,2263.5,16.22930246]
[1625455461737,3.20527,2264.7,2263.6,0.13078933]
[1625455462040,3.20527,2264.7,2263.7,16.072002]
[1625455462739,3.20527,2264.7,2264.6,4.41054]
[1625455463691,3.20527,2264.7,2263.4,14.5312]
[1625455464291,3.20527,2264.7,2263.5,16.163492]
[1625455464754,3.20527,2264.7,2264.2,2.20527]
[1625455466721,2.20527,2264.3,2264.2,2.20527]
[1625455466824,3.20527,2264.3,2264.2,2.20527]
[1625455467929,3.20527,2264.3,2263.0,1.255472]
[1625455468680,3.20527,2264.3,2262.7,1.2564411]
[1625455468776,2.20527,2263.7,2263.4,2.20527]
[1625455468877,1.0,2263.6,2263.4,2.20527]
[1625455470283,0.8727,2264.4,2263.4,2.20527]
[1625455470382,1.8727,2264.4,2263.4,2.20527]
[1625455470732,2.20527,2264.0,2263.7,2.20527]
[1625455470833,1.0,2263.9,2263.7,2.20527]
[1625455472740,2.20527,2263.8,2263.7,2.20527]
[1625455472838,3.20527,2263.8,2263.7,2.20527]
[1625455477451,58.73327,2263.8,2263.7,2.20527]
[1625455477901,58.73327,2263.8,2262.7,1.26015317]
[1625455478003,58.73327,2263.8,2262.6,1.26084858]
[1625455478107,5.0,2263.7,2262.6,1.26084858]
[1625455478206,1.0,2263.6,2262.6,1.26084858]
[1625455478657,1.0,2263.6,2262.2,14.168]
[1625455478758,53.9928,2262.7,2262.2,14.168]
[1625455478857,3.20527,2262.6,2262.5,2.20527]
[1625455480776,3.20527,2262.6,2262.5,4.41054]
[1625455483041,1.0,2262.6,2262.5,4.41054]
[1625455483546,2.20527,2262.9,2262.5,4.41054]
[1625455483793,78.3711,2263.8,2262.5,4.41054]
[1625455484048,22.8431,2263.8,2262.5,4.41054]
[1625455484746,1.0,2263.7,2262.5,4.41054]
[1625455484847,2.20527,2263.6,2263.4,2.20527]
[1625455484948,1.0,2263.5,2263.4,2.20527]
[1625455485605,18.43256,2262.6,2262.2,16.19407153]
[1625455485905,18.43256,2262.6,2262.3,0.13085132]
[1625455486208,18.43256,2262.6,2262.4,16.073819]
[1625455486606,18.43256,2262.6,2262.5,0.13085005]
[1625455486808,18.43256,2262.6,2262.5,4.54139005]
[1625455486957,18.43256,2262.6,2262.5,20.63891605]
[1625455487720,18.43256,2262.6,2262.5,20.508066]
[1625455490227,18.43256,2262.6,2262.5,18.302796]
[1625455490885,18.43256,2262.6,2262.5,20.508066]
[1625455499252,21.83466,2262.6,2262.5,20.508066]
[1625455499352,21.83466,2262.6,2262.5,2.20527]
[1625455499439,22.83466,2262.6,2262.5,2.20527]
[1625455499738,76.32946,2262.6,2262.5,2.20527]
[1625455500946,80.74,2262.6,2262.5,2.20527]
[1625455501846,80.74,2262.6,2262.5,2.06427]
[1625455502097,80.74,2262.6,2262.5,1.61617]
[1625455502197,80.74,2262.6,2262.1,2.20527]
[1625455502950,2.20527,2262.2,2262.1,2.20527]
[1625455503052,3.20527,2262.2,2262.1,2.20527]
[1625455506561,3.20527,2262.2,2261.2,1.25785876]
[1625455506660,21.63783,2262.2,2261.2,1.25785876]
[1625455506961,21.63783,2262.2,2261.7,2.20527]
[1625455508967,2.20527,2261.8,2261.7,2.20527]
[1625455509063,6.44097,2261.8,2261.7,2.20527]
[1625455511472,6.44097,2261.8,2261.7,57.82707]
[1625455511575,6.44097,2261.8,2261.7,2.20527]
[1625455512434,3.20527,2261.8,2261.7,2.20527]
[1625455512728,2.20527,2261.8,2261.7,2.20527]
[1625455513328,2.20527,2261.8,2261.7,18.133867]
[1625455515139,2.20527,2261.8,2261.7,2.20527]
[1625455515590,3.20527,2261.8,2261.7,2.20527]
[1625455515943,21.63783,2261.8,2261.7,2.20527]
[1625455516193,20.63783,2261.8,2261.7,2.20527]
[1625455516795,18.43256,2261.8,2261.7,2.20527]
[1625455516993,20.63783,2261.8,2261.7,2.20527]
[1625455517093,20.63783,2261.8,2261.7,44.91727]
[1625455517194,20.63783,2261.8,2261.7,60.834938]
[1625455517593,20.63783,2261.8,2261.7,18.122938]
[1625455518596,20.63783,2261.8,2261.7,2.20527]
[1625455519501,21.63783,2261.8,2261.7,2.20527]
[1625455520251,24.53573,2261.8,2261.7,2.20527]
[1625455521353,24.53573,2261.8,2261.7,50.01907]
[1625455522063,24.53573,2261.8,2261.7,66.170961]
[1625455522163,24.53573,2261.8,2261.7,18.357161]
[1625455522264,23.53573,2261.8,2261.7,18.357161]
[1625455522361,23.53573,2261.8,2261.7,2.20527]
[1625455526523,24.53573,2261.8,2261.7,2.20527]
[1625455528572,14.02202,2261.1,2261.0,54.9063]
[1625455528671,17.41982,2261.1,2261.0,54.9063]
[1625455528771,17.41982,2261.1,2260.5,1.25690238]
[1625455529078,17.41982,2261.1,2260.6,0.13092124]
[1625455529282,19.62509,2261.1,2261.0,4.41054]
[1625455529584,19.62509,2261.1,2261.0,18.19004]
[1625455529891,20.62509,2261.1,2261.0,18.19004]
[1625455531295,20.62509,2261.1,2261.0,15.98477]
[1625455531596,20.62509,2261.1,2260.8,16.189713]
[1625455532650,20.62509,2261.1,2260.9,39.3533]
[1625455532951,20.62509,2261.1,2261.0,15.961347]
[1625455533305,19.62509,2261.1,2261.0,15.961347]
[1625455534656,19.62509,2261.1,2260.8,16.183092]
[1625455535366,16.22729,2261.1,2261.0,2.20527]
[1625455535665,16.22729,2261.1,2261.0,18.193123]
[1625455535765,16.22729,2261.1,2261.0,65.252123]
[1625455535978,16.22729,2261.1,2261.0,18.193123]
[1625455536064,14.02202,2261.1,2261.0,18.193123]
[1625455537015,2.20527,2261.3,2261.0,4.171103]
[1625455537317,2.20527,2261.1,2261.0,4.171103]
[1625455544533,3.20527,2261.1,2261.0,4.171103]
[1625455546942,2.20527,2261.1,2261.0,4.171103]
[1625455547394,2.20527,2261.1,2261.0,6.376373]
[1625455552120,1.0,2261.9,2261.0,6.376373]
[1625455553376,2.20527,2261.4,2261.3,2.20527]
[1625455553722,2.20527,2261.4,2261.3,16.056305]
[1625455554021,2.20527,2261.4,2261.1,15.957007]
[1625455555427,2.20527,2261.2,2261.1,15.957007]
[1625455556379,2.20527,2261.2,2261.1,16.08791886]
[1625455556731,2.20527,2261.2,2261.1,15.957007]